[Event "34rd NATO Championship 2024"]
[Site "Rhodes"]
[Date "2024.10.23"]
[Round "4.20"]
[White "Nielsen, Jan Mose"]
[Black "Dino, Giuseppe"]
[Result "1-0"]
[ECO "E81"]
[WhiteElo "2036"]
[BlackElo "1884"]
[Annotator "RC"]
[PlyCount "93"]
[EventDate "2024.09.18"]
[EventType "swiss"]
[EventCountry "GRE"]
[SourceTitle "playchess.com"]
[Source "ChessBase"]
[SourceQuality "1"]
[TimeControl "5400+30"]

1. d4 {[%emt 0:00:02]} Nf6 {[%emt 0:00:08]} 2. c4 {[%emt 0:00:05]} g6 {[%emt 0:00:08]} 3. Nc3 {[%emt 0:00:04]} Bg7 {[%emt 0:00:09]} 4. e4 {[%emt 0:00:04]} d6 {[%emt 0:00:06]} 5. f3 {[%emt 0:00:03]} O-O {[%emt 0:00:10]} 6. Be3 {[%emt 0:00:03]} c6 {[%emt 0:00:05]} 7. Qd2 {[%emt 0:02:28]} a6 {[%emt 0:00:01]} 8. a3 {[%emt 0:02:16]} b5 {[%emt 0:00:09]} 9. Rd1 {[%emt 0:05:16]} Qc7 {[%emt 0:10:48]} 10. g4 {[%emt 0:03:59]} Bb7 {[%emt 0:11:52]} 11. Bh6 {[%emt 0:14:14]} Re8 {[%emt 0:00:08]} 12. h4 {[%emt 0:01:09]} Bh8 {[%emt 0:00:11]} 13. h5 {[%emt 0:00:59]} e5 {[%emt 0:04:58]} 14. dxe5 {[%emt 0:03:38]} dxe5 {[%emt 0:00:07]} 15. c5 {[%emt 0:01:36]} Qe7 {[%emt 0:01:25]} 16. hxg6 {[%emt 0:01:22]} hxg6 {[%emt 0:02:25]} 17. Be3 {[%emt 0:05:12]} Bg7 {[%emt 0:00:08]} 18. Nge2 {[%emt 0:00:36]} Nbd7 {[%emt 0:00:05]} 19. g5 {[%emt 0:00:20]} Nxc5 {[%emt 0:03:40]} 20. gxf6 {[%emt 0:00:23]} Bxf6 {[%emt 0:00:01]} 21. Qd6 {[%emt 0:02:50]} Ne6 {[%emt 0:01:11]} 22. Qxe7 {[%emt 0:54:51]} Rxe7 {[%emt 0:01:03]} 23. Kf2 {[%emt 0:00:00]} Ree8 {[%emt 0:09:02]} 24. Bh3 {[%emt 0:00:00]} Ng5 {[%emt 0:00:20]} 25. Bg4 {[%emt 0:00:00]} Rad8 {[%emt 0:01:11]} 26. Bc5 {[%emt 0:00:00]} Ne6 {[%emt 0:00:26]} 27. Bxe6 {[%emt 0:00:00]} Rxe6 {[%emt 0:00:02]} 28. Rxd8+ {[%emt 0:00:00]} Bxd8 {[%emt 0:00:02]} 29. Rd1 {[%emt 0:00:00]} Bh4+ {[%emt 0:00:02]} 30. Kg2 {[%emt 0:00:00]} Bc8 {[%emt 0:03:28]} 31. Rd6 {[%emt 0:00:00]} f5 {[%emt 0:00:06]} 32. Rxe6 {[%emt 0:00:00]} Bxe6 {[%emt 0:00:01]} 33. Bd6 {[%emt 0:00:00]} Bf6 {[%emt 0:00:04]} 34. f4 {[%emt 0:00:00]} exf4 {[%emt 0:04:00]} 35. Nxf4 {[%emt 0:00:00]} Kf7 {[%emt 0:00:01]} 36. Kf3 {[%emt 0:00:00]} fxe4+ {[%emt 0:03:40]} 37. Nxe4 {[%emt 0:00:00]} Bd5 {[%emt 0:00:01]} 38. Nxd5 {[%emt 0:00:00]} cxd5 {[%emt 0:00:01]} 39. Nxf6 {[%emt 0:00:00]} Kxf6 {[%emt 0:00:01]} 40. Ke3 {[%emt 0:00:00]} Ke6 {[%emt 0:00:01]} 41. Bg3 {[%emt 0:00:00]} Kd7 {[%emt 0:00:21]} 42. Kd4 {[%emt 0:00:00]} Kc6 {[%emt 0:00:01]} 43. b4 {[%emt 0:00:00]} g5 {[%emt 0:00:17]} 44. Ke5 {[%emt 0:00:00]} g4 {[%emt 0:00:07]} 45. Kd4 {[%emt 0:00:00]} a5 {[%emt 0:00:06]} 46. Ke5 {[%emt 0:00:00]} axb4 {[%emt 0:01:31]} 47. axb4 {[%emt 0:00:00]} 1-0

[Event "34rd NATO Championship 2024"]
[Site "Rhodes"]
[Date "2024.10.23"]
[Round "4.21"]
[White "Hadzicki, Tomasz"]
[Black "Kapsomenakis, Petros"]
[Result "1-0"]
[ECO "B01"]
[WhiteElo "2034"]
[BlackElo "1914"]
[Annotator "RC"]
[PlyCount "73"]
[EventDate "2024.09.18"]
[EventType "swiss"]
[EventCountry "GRE"]
[SourceTitle "playchess.com"]
[Source "ChessBase"]
[SourceQuality "1"]
[TimeControl "5400+30"]

1. e4 {[%emt 0:00:01]} d5 {[%emt 0:00:09]} 2. exd5 {[%emt 0:00:05]} Qxd5 {[%emt 0:00:02]} 3. Nc3 {[%emt 0:00:20]} Qd6 {[%emt 0:00:07]} 4. Bc4 {[%emt 0:01:37]} a6 {[%emt 0:00:55]} 5. d4 {[%emt 0:01:14]} Nf6 {[%emt 0:00:18]} 6. a4 {[%emt 0:02:21]} Nc6 {[%emt 0:01:10]} 7. Nge2 {[%emt 0:01:00]} e5 {[%emt 0:04:40]} 8. d5 {[%emt 0:06:28]} Nb4 {[%emt 0:07:12]} 9. Ng3 {[%emt 0:09:23]} Bg4 {[%emt 0:12:30]} 10. f3 {[%emt 0:00:47]} Bd7 {[%emt 0:02:58]} 11. Nce4 {[%emt 0:15:35]} Nxe4 {[%emt 0:00:28]} 12. fxe4 {[%emt 0:00:00]} a5 {[%emt 0:03:30]} 13. Be3 {[%emt 0:04:43]} Be7 {[%emt 0:05:39]} 14. O-O {[%emt 0:02:27]} O-O {[%emt 0:05:26]} 15. Be2 {[%emt 0:07:42]} Bh4 {[%emt 0:11:43]} 16. Nf5 {[%emt 0:07:20]} Bxf5 {[%emt 0:00:44]} 17. Rxf5 {[%emt 0:00:01]} g6 {[%emt 0:01:30]} 18. Rf1 {[%emt 0:00:58]} f5 {[%emt 0:02:28]} 19. c3 {[%emt 0:00:49]} f4 {[%emt 0:02:17]} 20. Bd2 {[%emt 0:10:00]} Na6 {[%emt 0:00:13]} 21. Qc2 {[%emt 0:00:24]} Nc5 {[%emt 0:08:37]} 22. b4 {[%emt 0:01:20]} Nd7 {[%emt 0:00:54]} 23. Kh1 {[%emt 0:01:31]} Be7 {[%emt 0:01:35]} 24. Rfb1 {[%emt 0:01:52]} axb4 {[%emt 0:01:52]} 25. cxb4 {[%emt 0:00:04]} Rfd8 {[%emt 0:02:13]} 26. Be1 {[%emt 0:02:20]} Rac8 {[%emt 0:00:26]} 27. Rc1 {[%emt 0:03:16]} Nf6 {[%emt 0:02:00]} 28. a5 {[%emt 0:01:17]} c6 {[%emt 0:07:13]} 29. a6 {[%emt 0:00:30]} bxa6 {[%emt 0:07:16]} 30. Rxa6 {[%emt 0:01:50]} Qb8 {[%emt 0:03:59]} 31. dxc6 {[%emt 0:00:09]} Rd4 {[%emt 0:02:00]} 32. b5 {[%emt 0:10:13]} Nxe4 {[%emt 0:01:22]} 33. Qa2+ {[%emt 0:02:22]} Kf8 {[%emt 0:01:39]} 34. Ra7 {[%emt 0:00:23]} Qd6 {[%emt 0:01:17]} 35. Bg4 {[%emt 0:02:10]} Rd8 {[%emt 0:01:00]} 36. c7 {[%emt 0:00:20]} Rc8 {[%emt 0:00:29]} 37. Ra8 {[%emt 0:01:02]} 1-0

[Event "34rd NATO Championship 2024"]
[Site "Rhodes"]
[Date "2024.10.23"]
[Round "4.22"]
[White "Verlaine, Alexandre"]
[Black "Nilsson, Erik"]
[Result "1/2-1/2"]
[ECO "C55"]
[WhiteElo "1962"]
[BlackElo "2028"]
[Annotator "RC"]
[PlyCount "22"]
[EventDate "2024.09.18"]
[EventType "swiss"]
[EventCountry "GRE"]
[SourceTitle "playchess.com"]
[Source "ChessBase"]
[SourceQuality "1"]
[TimeControl "5400+30"]

1. e4 {[%emt 0:00:03]} e5 {[%emt 0:00:09]} 2. Nf3 {[%emt 0:00:11]} Nc6 {[%emt 0:00:08]} 3. Bc4 {[%emt 0:00:11]} Nf6 {[%emt 0:00:09]} 4. d3 {[%emt 0:00:28]} Be7 {[%emt 0:00:15]} 5. O-O {[%emt 0:00:15]} O-O {[%emt 0:00:42]} 6. a3 {[%emt 0:02:30]} d6 {[%emt 0:00:13]} 7. Nbd2 {[%emt 0:01:13]} Be6 {[%emt 0:00:14]} 8. c3 {[%emt 0:02:26]} Re8 {[%emt 0:08:56]} 9. Bxe6 {[%emt 0:09:06]} fxe6 {[%emt 0:00:08]} 10. Qb3 {[%emt 0:00:54]} Qc8 {[%emt 0:00:43]} 11. d4 {[%emt 0:07:17]} exd4 {[%emt 0:01:28]} 1/2-1/2

[Event "34rd NATO Championship 2024"]
[Site "Rhodes"]
[Date "2024.10.23"]
[Round "4.23"]
[White "Unruh, Charles M"]
[Black "Tommasini, Enzo"]
[Result "0-1"]
[ECO "A30"]
[WhiteElo "1911"]
[BlackElo "2026"]
[Annotator "RC"]
[PlyCount "100"]
[EventDate "2024.09.18"]
[EventType "swiss"]
[EventCountry "GRE"]
[SourceTitle "playchess.com"]
[Source "ChessBase"]
[SourceQuality "1"]
[TimeControl "5400+30"]

1. Nf3 {[%emt 0:00:03]} e6 {[%emt 0:01:28]} 2. g3 {[%emt 0:00:05]} b6 {[%emt 0:00:14]} 3. Bg2 {[%emt 0:00:07]} Bb7 {[%emt 0:02:05]} 4. c4 {[%emt 0:00:07]} c5 {[%emt 0:00:21]} 5. O-O {[%emt 0:00:17]} Nf6 {[%emt 0:00:12]} 6. Nc3 {[%emt 0:00:13]} Be7 {[%emt 0:00:15]} 7. a3 {[%emt 0:00:11]} O-O {[%emt 0:00:47]} 8. d3 {[%emt 0:00:11]} d5 {[%emt 0:03:13]} 9. Rb1 {[%emt 0:00:49]} Nc6 {[%emt 0:02:28]} 10. e3 {[%emt 0:03:35]} Qd7 {[%emt 0:03:49]} 11. Qc2 {[%emt 0:02:04]} Rfd8 {[%emt 0:02:59]} 12. Rd1 {[%emt 0:00:14]} Rac8 {[%emt 0:00:11]} 13. b3 {[%emt 0:02:39]} Ba8 {[%emt 0:13:12]} 14. Bb2 {[%emt 0:00:19]} a6 {[%emt 0:02:11]} 15. Ne2 {[%emt 0:02:02]} Qc7 {[%emt 0:02:42]} 16. Rbc1 {[%emt 0:00:50]} b5 {[%emt 0:00:48]} 17. cxd5 {[%emt 0:02:01]} exd5 {[%emt 0:01:15]} 18. Bh3 {[%emt 0:04:16]} Rb8 {[%emt 0:00:10]} 19. Nh4 {[%emt 0:03:00]} Ne8 {[%emt 0:00:27]} 20. Nf5 {[%emt 0:00:29]} Bf8 {[%emt 0:00:02]} 21. Qc3 {[%emt 0:02:44]} b4 {[%emt 0:01:45]} 22. axb4 {[%emt 0:00:26]} Nxb4 {[%emt 0:00:13]} 23. Ra1 {[%emt 0:01:42]} d4 {[%emt 0:01:34]} 24. exd4 {[%emt 0:00:38]} Qb7 {[%emt 0:01:15]} 25. Kf1 {[%emt 0:00:02]} Qh1+ {[%emt 0:02:07]} 26. Ng1 {[%emt 0:00:06]} cxd4 {[%emt 0:01:36]} 27. Nxd4 {[%emt 0:00:52]} Rbc8 {[%emt 0:02:18]} 28. Bxc8 {[%emt 0:00:24]} Qg2+ {[%emt 0:01:40]} 29. Ke2 {[%emt 0:00:11]} Nf6 {[%emt 0:01:04]} 30. Bh3 {[%emt 0:00:44]} Re8+ {[%emt 0:00:14]} 31. Ne6 {[%emt 0:05:22]} Bf3+ {[%emt 0:08:28]} 32. Nxf3 {[%emt 0:00:07]} Qxh3 {[%emt 0:00:12]} 33. Nfg5 {[%emt 0:03:01]} Qh5+ {[%emt 0:00:03]} 34. Kd2 {[%emt 0:05:26]} fxe6 {[%emt 0:00:09]} 35. h4 {[%emt 0:02:41]} h6 {[%emt 0:00:23]} 36. Ne4 {[%emt 0:00:30]} Nfd5 {[%emt 0:02:25]} 37. Qd4 {[%emt 0:05:17]} Rd8 {[%emt 0:10:03]} 38. Qe5 {[%emt 0:01:59]} Qf7 {[%emt 0:00:30]} 39. Ke2 {[%emt 0:00:51]} Nc6 {[%emt 0:00:44]} 40. Nf6+ {[%emt 0:02:44]} Nxf6 {[%emt 0:01:11]} 41. Qf4 {[%emt 0:01:13]} e5 {[%emt 0:03:39]} 42. Qc4 {[%emt 0:00:55]} Rd6 {[%emt 0:04:40]} 43. Ra4 {[%emt 0:03:04]} a5 {[%emt 0:02:39]} 44. Bc3 {[%emt 0:02:10]} Nd5 {[%emt 0:01:50]} 45. Bxa5 {[%emt 0:04:10]} Nd4+ {[%emt 0:00:52]} 46. Ke1 {[%emt 0:00:50]} Qf3 {[%emt 0:00:52]} 47. Ra2 {[%emt 0:00:21]} Rc6 {[%emt 0:00:59]} 48. Qa4 {[%emt 0:01:50]} Nc2+ {[%emt 0:04:58]} 49. Rxc2 {[%emt 0:00:34]} Rxc2 {[%emt 0:00:12]} 50. Bd2 {[%emt 0:00:10]} Qh1+ {[%emt 0:01:46]} 0-1

[Event "34rd NATO Championship 2024"]
[Site "Rhodes"]
[Date "2024.10.23"]
[Round "4.26"]
[White "Tucker, David S"]
[Black "Fichtner, Ewald"]
[Result "0-1"]
[ECO "B13"]
[WhiteElo "1921"]
[BlackElo "2063"]
[Annotator "RC"]
[PlyCount "56"]
[EventDate "2024.09.18"]
[EventType "swiss"]
[EventCountry "GRE"]
[SourceTitle "playchess.com"]
[Source "ChessBase"]
[SourceQuality "1"]
[TimeControl "5400+30"]

1. e4 {[%emt 0:00:04]} c6 {[%emt 0:00:04]} 2. d4 {[%emt 0:00:41]} d5 {[%emt 0:00:07]} 3. exd5 {[%emt 0:00:09]} cxd5 {[%emt 0:00:06]} 4. Bd3 {[%emt 0:00:08]} Nc6 {[%emt 0:00:06]} 5. c3 {[%emt 0:00:06]} Qc7 {[%emt 0:00:06]} 6. Nf3 {[%emt 0:04:57]} Bg4 {[%emt 0:00:31]} 7. Na3 {[%emt 0:09:48]} a6 {[%emt 0:04:41]} 8. Nc2 {[%emt 0:00:23]} e6 {[%emt 0:00:47]} 9. h3 {[%emt 0:06:57]} Bh5 {[%emt 0:00:08]} 10. O-O {[%emt 0:04:50]} Bd6 {[%emt 0:01:55]} 11. Re1 {[%emt 0:00:44]} Nf6 {[%emt 0:01:29]} 12. a4 {[%emt 0:11:26]} O-O {[%emt 0:03:36]} 13. Bg5 {[%emt 0:01:07]} Rac8 {[%emt 0:03:05]} 14. Bxf6 {[%emt 0:04:39]} gxf6 {[%emt 0:03:43]} 15. Ne3 {[%emt 0:02:51]} Kh8 {[%emt 0:03:26]} 16. g4 {[%emt 0:06:28]} Bg6 {[%emt 0:02:25]} 17. Bxg6 {[%emt 0:02:28]} hxg6 {[%emt 0:00:14]} 18. Kg2 {[%emt 0:01:07]} Kg7 {[%emt 0:00:36]} 19. Rh1 {[%emt 0:00:31]} Rh8 {[%emt 0:01:55]} 20. c4 {[%emt 0:05:57]} dxc4 {[%emt 0:05:02]} 21. Nxc4 {[%emt 0:00:14]} Bf4 {[%emt 0:00:50]} 22. Ne3 {[%emt 0:02:14]} Ne7 {[%emt 0:03:52]} 23. Rc1 {[%emt 0:03:36]} Qb6 {[%emt 0:05:01]} 24. Qd2 {[%emt 0:02:23]} Qd6 {[%emt 0:04:21]} 25. Rxc8 {[%emt 0:00:28]} Rxc8 {[%emt 0:00:10]} 26. Rc1 {[%emt 0:00:08]} Rd8 {[%emt 0:02:31]} 27. Rd1 {[%emt 0:00:36]} Nd5 {[%emt 0:07:54]} 28. Qa5 {[%emt 0:02:37]} Bxe3 {[%emt 0:00:35]} 0-1

[Event "34rd NATO Championship 2024"]
[Site "Rhodes"]
[Date "2024.10.23"]
[Round "4.27"]
[White "Schott, Guido"]
[Black "Heran-Boily, Samuel"]
[Result "1/2-1/2"]
[ECO "B10"]
[WhiteElo "2059"]
[BlackElo "1898"]
[Annotator "RC"]
[PlyCount "76"]
[EventDate "2024.09.18"]
[EventType "swiss"]
[EventCountry "GRE"]
[SourceTitle "playchess.com"]
[Source "ChessBase"]
[SourceQuality "1"]
[TimeControl "5400+30"]

1. c4 {[%emt 0:00:06]} c6 {[%emt 0:00:06]} 2. e4 {[%emt 0:00:28]} e5 {[%emt 0:12:13]} 3. Nf3 {[%emt 0:00:47]} d6 {[%emt 0:00:57]} 4. d4 {[%emt 0:00:47]} Qc7 {[%emt 0:04:55]} 5. Nc3 {[%emt 0:00:59]} Bg4 {[%emt 0:01:31]} 6. Be2 {[%emt 0:01:37]} Nf6 {[%emt 0:03:40]} 7. Be3 {[%emt 0:01:41]} Be7 {[%emt 0:01:15]} 8. Nd2 {[%emt 0:07:43]} Bxe2 {[%emt 0:00:41]} 9. Qxe2 {[%emt 0:00:10]} Nbd7 10. O-O {[%emt 0:00:42]} Nf8 {[%emt 0:09:24]} 11. Rac1 {[%emt 0:09:21]} Ne6 {[%emt 1:01:18]} 12. Nb3 {[%emt 0:03:07]} c5 {[%emt 0:00:00]} 13. dxe5 {[%emt 0:08:02]} dxe5 {[%emt 0:00:00]} 14. Nd5 {[%emt 0:00:39]} Qc6 {[%emt 0:00:00]} 15. f3 {[%emt 0:01:53]} b6 {[%emt 0:00:00]} 16. Rfd1 {[%emt 0:03:34]} Qb7 {[%emt 0:00:00]} 17. Qf2 {[%emt 0:02:20]} Nh5 {[%emt 0:00:00]} 18. Nxe7 {[%emt 0:11:46]} Qxe7 {[%emt 0:00:00]} 19. Rd5 {[%emt 0:00:18]} Nhf4 {[%emt 0:00:00]} 20. Rd2 {[%emt 0:03:59]} O-O {[%emt 0:00:00]} 21. Rcd1 {[%emt 0:03:32]} Rad8 {[%emt 0:00:00]} 22. Bxf4 {[%emt 0:02:27]} Nxf4 {[%emt 0:00:00]} 23. Nc1 {[%emt 0:00:36]} Qg5 {[%emt 0:00:00]} 24. Kh1 {[%emt 0:01:15]} Rd4 {[%emt 0:00:00]} 25. Rxd4 {[%emt 0:02:54]} exd4 {[%emt 0:00:00]} 26. g3 {[%emt 0:03:19]} Ng6 {[%emt 0:00:00]} 27. Nd3 {[%emt 0:01:35]} Ne5 {[%emt 0:00:00]} 28. b3 {[%emt 0:01:28]} Nxd3 {[%emt 0:00:00]} 29. Rxd3 {[%emt 0:00:08]} Qc1+ {[%emt 0:00:00]} 30. Kg2 {[%emt 0:00:40]} a5 {[%emt 0:00:00]} 31. a4 {[%emt 0:00:52]} Re8 {[%emt 0:00:00]} 32. Qe2 {[%emt 0:04:26]} f5 {[%emt 0:00:00]} 33. e5 {[%emt 0:02:06]} f4 {[%emt 0:00:00]} 34. Qe4 {[%emt 0:02:49]} Qc2+ {[%emt 0:00:00]} 35. Kh3 {[%emt 0:00:56]} Re6 {[%emt 0:00:00]} 36. Qa8+ {[%emt 0:05:36]} Kf7 {[%emt 0:00:00]} 37. Qb7+ {[%emt 0:00:08]} Kf8 {[%emt 0:00:11]} 38. Qc8+ {[%emt 0:02:17]} Ke7 {[%emt 0:00:58]} 1/2-1/2

[Event "34rd NATO Championship 2024"]
[Site "Rhodes"]
[Date "2024.10.23"]
[Round "4.28"]
[White "Rosseel, Kimball"]
[Black "Hof - Van Run, Rieke"]
[Result "1/2-1/2"]
[ECO "D04"]
[WhiteElo "1896"]
[BlackElo "2038"]
[Annotator "RC"]
[PlyCount "29"]
[EventDate "2024.09.18"]
[EventType "swiss"]
[EventCountry "GRE"]
[SourceTitle "playchess.com"]
[Source "ChessBase"]
[SourceQuality "1"]
[TimeControl "5400+30"]

1. d4 {[%emt 0:00:04]} d5 {[%emt 0:00:08]} 2. Nf3 {[%emt 0:00:08]} Nf6 {[%emt 0:00:46]} 3. e3 {[%emt 0:00:09]} Bg4 {[%emt 0:01:29]} 4. Bd3 {[%emt 0:01:39]} e6 {[%emt 0:00:40]} 5. O-O {[%emt 0:00:21]} Bd6 {[%emt 0:01:05]} 6. h3 {[%emt 0:06:22]} Bh5 {[%emt 0:00:10]} 7. Nbd2 {[%emt 0:02:36]} O-O {[%emt 0:00:32]} 8. c3 {[%emt 0:04:11]} Nbd7 {[%emt 0:02:19]} 9. Qc2 {[%emt 0:02:11]} Bg6 {[%emt 0:02:22]} 10. Bxg6 {[%emt 0:01:32]} hxg6 {[%emt 0:03:23]} 11. e4 {[%emt 0:01:59]} dxe4 {[%emt 0:01:02]} 12. Nxe4 {[%emt 0:01:02]} Nxe4 {[%emt 0:00:20]} 13. Qxe4 {[%emt 0:00:09]} c6 {[%emt 0:00:37]} 14. Bd2 {[%emt 0:07:14]} Qa5 {[%emt 0:07:45]} 15. Rfe1 {[%emt 0:04:49]} 1/2-1/2

[Event "34rd NATO Championship 2024"]
[Site "Rhodes"]
[Date "2024.10.23"]
[Round "4.29"]
[White "Aagaard, Gert"]
[Black "Dowd, Patrick"]
[Result "1-0"]
[ECO "A83"]
[WhiteElo "2029"]
[BlackElo "1885"]
[Annotator "RC"]
[PlyCount "21"]
[EventDate "2024.09.18"]
[EventType "swiss"]
[EventCountry "GRE"]
[SourceTitle "playchess.com"]
[Source "ChessBase"]
[SourceQuality "1"]
[TimeControl "5400+30"]

1. d4 {[%emt 0:00:03]} e6 {[%emt 0:00:05]} 2. Nf3 {[%emt 0:00:17]} f5 {[%emt 0:00:14]} 3. Bg5 {[%emt 0:02:01]} Nf6 {[%emt 0:00:14]} 4. Nc3 {[%emt 0:02:49]} Be7 {[%emt 0:00:15]} 5. Bxf6 {[%emt 0:01:24]} Bxf6 {[%emt 0:00:16]} 6. e4 {[%emt 0:00:04]} fxe4 {[%emt 0:06:39]} 7. Nxe4 {[%emt 0:00:08]} Be7 {[%emt 0:00:43]} 8. Bd3 {[%emt 0:00:27]} b6 {[%emt 0:00:23]} 9. Ne5 {[%emt 0:04:44]} O-O {[%emt 0:03:15]} 10. Qh5 {[%emt 0:01:39]} Qe8 {[%emt 0:05:29]} 11. Nf6+ {[%emt 0:01:28]} 1-0

[Event "34rd NATO Championship 2024"]
[Site "Rhodes"]
[Date "2024.10.23"]
[Round "4.30"]
[White "Huidiu, Vasile-Cristian"]
[Black "Duren, Andrew"]
[Result "0-1"]
[ECO "D13"]
[WhiteElo "1729"]
[BlackElo "2015"]
[Annotator "RC"]
[PlyCount "98"]
[EventDate "2024.09.18"]
[EventType "swiss"]
[EventCountry "GRE"]
[SourceTitle "playchess.com"]
[Source "ChessBase"]
[SourceQuality "1"]
[TimeControl "5400+30"]

1. d4 {[%emt 0:01:42]} d5 {[%emt 0:00:08]} 2. c4 {[%emt 0:00:38]} c6 {[%emt 0:00:08]} 3. cxd5 {[%emt 0:01:04]} cxd5 {[%emt 0:00:06]} 4. Nf3 {[%emt 0:01:13]} Nc6 {[%emt 0:01:08]} 5. g3 {[%emt 0:01:14]} Nf6 {[%emt 0:00:35]} 6. Bg2 {[%emt 0:01:33]} Bf5 {[%emt 0:02:18]} 7. O-O {[%emt 0:01:57]} h6 {[%emt 0:02:06]} 8. b3 {[%emt 0:05:08]} Nb4 {[%emt 0:05:28]} 9. Na3 {[%emt 0:11:35]} e6 {[%emt 0:03:57]} 10. Ne5 {[%emt 0:08:50]} Qb6 {[%emt 0:09:34]} 11. Bb2 {[%emt 0:05:03]} Bd6 {[%emt 0:01:33]} 12. Re1 {[%emt 0:09:16]} O-O {[%emt 0:02:10]} 13. e4 {[%emt 0:01:34]} Bxe4 {[%emt 0:03:58]} 14. Bxe4 {[%emt 0:01:10]} Bxe5 {[%emt 0:04:41]} 15. Bxd5 {[%emt 0:04:16]} Bxg3 {[%emt 0:01:51]} 16. hxg3 {[%emt 0:00:18]} exd5 {[%emt 0:00:41]} 17. Nc2 {[%emt 0:03:15]} Rfe8 {[%emt 0:07:59]} 18. Nxb4 {[%emt 0:02:56]} Qxb4 {[%emt 0:00:11]} 19. Re5 {[%emt 0:02:45]} Rac8 {[%emt 0:05:48]} 20. Rc1 {[%emt 0:03:58]} Rxc1 {[%emt 0:01:32]} 21. Bxc1 {[%emt 0:01:07]} Qc3 {[%emt 0:04:54]} 22. Rxe8+ {[%emt 0:00:48]} Nxe8 {[%emt 0:00:06]} 23. Qd2 {[%emt 0:02:06]} Qc6 {[%emt 0:02:24]} 24. Ba3 {[%emt 0:00:51]} Nf6 {[%emt 0:00:26]} 25. Qb4 {[%emt 0:07:28]} Kh7 {[%emt 0:02:44]} 26. Qd2 {[%emt 0:02:58]} Qe6 {[%emt 0:03:23]} 27. Qd3+ {[%emt 0:01:06]} Qe4 {[%emt 0:00:43]} 28. Qxe4+ {[%emt 0:18:41]} dxe4 {[%emt 0:00:06]} 29. Bc1 {[%emt 0:00:00]} Nd5 {[%emt 0:00:28]} 30. Bd2 {[%emt 0:00:00]} b5 {[%emt 0:00:44]} 31. a4 {[%emt 0:00:00]} a6 {[%emt 0:00:06]} 32. Kg2 {[%emt 0:00:00]} f5 {[%emt 0:00:26]} 33. Kf1 {[%emt 0:00:00]} g5 {[%emt 0:01:41]} 34. Ke2 {[%emt 0:00:00]} f4 {[%emt 0:02:07]} 35. gxf4 {[%emt 0:00:00]} gxf4 {[%emt 0:00:06]} 36. Kf1 {[%emt 0:00:00]} Kg6 {[%emt 0:01:15]} 37. Kg2 {[%emt 0:00:00]} Kf5 {[%emt 0:00:15]} 38. Kh3 {[%emt 0:00:28]} e3 {[%emt 0:00:45]} 39. fxe3 {[%emt 0:00:12]} fxe3 {[%emt 0:00:07]} 40. Be1 {[%emt 0:01:59]} Nf4+ {[%emt 0:01:02]} 41. Kg3 {[%emt 0:00:35]} Nd3 {[%emt 0:01:46]} 42. Ba5 {[%emt 0:00:25]} e2 {[%emt 0:00:19]} 43. axb5 {[%emt 0:00:46]} axb5 {[%emt 0:00:08]} 44. Kf3 {[%emt 0:01:35]} e1=R {[%emt 0:01:09]} 45. Bxe1 {[%emt 0:01:02]} Nxe1+ {[%emt 0:00:07]} 46. Ke3 {[%emt 0:00:09]} h5 {[%emt 0:00:28]} 47. Kd2 {[%emt 0:00:33]} Ke4 {[%emt 0:00:30]} 48. d5 {[%emt 0:00:34]} Kxd5 {[%emt 0:00:11]} 49. Kxe1 {[%emt 0:00:06]} b4 {[%emt 0:00:10]} 0-1

[Event "34rd NATO Championship 2024"]
[Site "Rhodes"]
[Date "2024.10.23"]
[Round "4.31"]
[White "Lebrun, Roger"]
[Black "Filipow, Mateusz"]
[Result "1/2-1/2"]
[ECO "C39"]
[WhiteElo "1984"]
[BlackElo "1843"]
[Annotator "RC"]
[PlyCount "57"]
[EventDate "2024.09.18"]
[EventType "swiss"]
[EventCountry "GRE"]
[SourceTitle "playchess.com"]
[Source "ChessBase"]
[SourceQuality "1"]
[TimeControl "5400+30"]

1. e4 {[%emt 0:00:04]} e5 {[%emt 0:00:07]} 2. f4 {[%emt 0:00:09]} exf4 {[%emt 0:00:34]} 3. Nf3 {[%emt 0:00:12]} g5 {[%emt 0:00:18]} 4. h4 {[%emt 0:00:45]} g4 {[%emt 0:05:55]} 5. Ne5 {[%emt 0:00:43]} Nc6 {[%emt 0:07:06]} 6. Nxg4 {[%emt 0:02:54]} h5 {[%emt 0:07:50]} 7. Nf2 {[%emt 0:02:50]} Bc5 {[%emt 0:01:20]} 8. c3 {[%emt 0:01:22]} Bxf2+ {[%emt 0:00:22]} 9. Kxf2 {[%emt 0:00:10]} Nf6 {[%emt 0:00:24]} 10. Qf3 {[%emt 0:11:26]} Qe7 {[%emt 0:11:05]} 11. d3 {[%emt 0:06:17]} Ng4+ {[%emt 0:03:22]} 12. Ke1 {[%emt 0:00:38]} d6 {[%emt 0:02:39]} 13. Bxf4 {[%emt 0:03:15]} Bd7 {[%emt 0:00:35]} 14. Kd2 {[%emt 0:09:50]} O-O-O {[%emt 0:00:38]} 15. Na3 {[%emt 0:01:02]} Rde8 {[%emt 0:01:27]} 16. Re1 {[%emt 0:06:13]} f5 {[%emt 0:02:56]} 17. Qg3 {[%emt 0:05:42]} fxe4 {[%emt 0:02:00]} 18. Rxe4 {[%emt 0:07:02]} Qf7 {[%emt 0:00:57]} 19. Rxe8+ {[%emt 0:12:03]} Rxe8 {[%emt 0:00:13]} 20. b3 {[%emt 0:00:13]} Qe6 {[%emt 0:09:14]} 21. d4 {[%emt 0:02:25]} Qf5 {[%emt 0:02:28]} 22. Bd3 {[%emt 0:00:36]} Qa5 {[%emt 0:01:12]} 23. Nc2 {[%emt 0:02:44]} Qxa2 {[%emt 0:01:51]} 24. Bg6 {[%emt 0:03:09]} Rh8 {[%emt 0:00:54]} 25. b4 {[%emt 0:06:56]} Qe6 {[%emt 0:07:07]} 26. Bd3 {[%emt 0:00:09]} Rf8 {[%emt 0:04:37]} 27. Ra1 {[%emt 0:02:59]} Kb8 {[%emt 0:04:13]} 28. Re1 {[%emt 0:00:47]} Qf6 {[%emt 0:06:01]} 29. Rf1 {[%emt 0:00:26]} 1/2-1/2

[Event "34rd NATO Championship 2024"]
[Site "Rhodes"]
[Date "2024.10.23"]
[Round "4.32"]
[White "Hart, David P O"]
[Black "Parker, Glen D"]
[Result "0-1"]
[ECO "D09"]
[WhiteElo "2003"]
[BlackElo "1979"]
[Annotator "RC"]
[PlyCount "36"]
[EventDate "2024.09.18"]
[EventType "swiss"]
[EventCountry "GRE"]
[SourceTitle "playchess.com"]
[Source "ChessBase"]
[SourceQuality "1"]
[TimeControl "5400+30"]

1. d4 {[%emt 0:00:03]} d5 {[%emt 0:01:34]} 2. c4 {[%emt 0:00:11]} e5 {[%emt 0:00:04]} 3. dxe5 {[%emt 0:00:25]} d4 {[%emt 0:00:06]} 4. Nf3 {[%emt 0:00:12]} Nc6 {[%emt 0:01:09]} 5. g3 {[%emt 0:01:35]} Bf5 {[%emt 0:05:20]} 6. a3 {[%emt 0:01:53]} Qd7 {[%emt 0:05:29]} 7. Bg2 {[%emt 0:04:37]} f6 {[%emt 0:09:28]} 8. exf6 {[%emt 0:06:13]} Nxf6 {[%emt 0:00:08]} 9. O-O {[%emt 0:03:02]} O-O-O {[%emt 0:05:49]} 10. Bg5 {[%emt 0:05:14]} Be7 {[%emt 0:02:06]} 11. Qa4 {[%emt 0:05:46]} Ne4 {[%emt 0:13:05]} 12. Bxe7 {[%emt 0:01:49]} Qxe7 {[%emt 0:00:17]} 13. Re1 {[%emt 0:04:22]} Rhf8 {[%emt 0:09:00]} 14. b4 {[%emt 0:05:40]} Nxf2 {[%emt 0:07:08]} 15. Kxf2 {[%emt 0:22:41]} Qe3+ {[%emt 0:00:11]} 16. Kf1 {[%emt 0:00:07]} Ne5 {[%emt 0:01:46]} 17. Qd1 {[%emt 0:00:11]} Ng4 {[%emt 0:00:12]} 18. Qxd4 {[%emt 0:04:17]} Rxd4 {[%emt 0:00:09]} 0-1